[Event "January 9 Late 2024"]
[Site "https://www.chess.com"]
[Date "2024.01.09"]
[Round "9"]
[White "Salem, A.R. Saleh"]
[Black "Ivanisevic, Ivan"]
[Result "1-0"]
[Board "19"]
[TimeControl "180+1"]
[WhiteFideId "9301348"]
[BlackFideId "912417"]
[WhiteElo "2972"]
[BlackElo "2795"]
[WhiteTeam "UAE"]
[BlackTeam "SRB"]
[WhiteClock "0:00:05"]
[BlackClock "0:00:00"]

1. d4 {[%clk 0:02:53]}  Nf6 {[%clk 0:03:00]} 2. c4 {[%clk 0:02:53]}  d6 {[%clk 0:03:00]} 3. Nc3 {[%clk 0:02:54]}  e5 {[%clk 0:03:00]} 4. Nf3 {[%clk 0:02:54]}  Nc6 {[%clk 0:03:00]} 5. d5 {[%clk 0:02:53]}  Ne7 {[%clk 0:03:00]} 6. e4 {[%clk 0:02:53]}  Ng6 {[%clk 0:03:00]} 7. g3 {[%clk 0:02:53]}  Be7 {[%clk 0:03:00]} 8. h4 {[%clk 0:02:49]}  h6 {[%clk 0:03:00]} 9. Be2 {[%clk 0:02:47]}  c6 {[%clk 0:02:58]} 10. Nh2 {[%clk 0:02:40]}  Bd7 {[%clk 0:02:50]} 11. Be3 {[%clk 0:02:25]}  Qc8 {[%clk 0:02:44]} 12. Rc1 {[%clk 0:02:20]}  cxd5 {[%clk 0:02:16]} 13. cxd5 {[%clk 0:02:19]}  Bd8 {[%clk 0:02:15]} 14. O-O {[%clk 0:02:04]}  O-O {[%clk 0:02:12]} 15. h5 {[%clk 0:01:57]}  Nh8 {[%clk 0:02:10]} 16. f4 {[%clk 0:01:45]}  Bh3 {[%clk 0:01:57]} 17. Rf2 {[%clk 0:01:32]}  Bb6 {[%clk 0:01:56]} 18. Bxb6 {[%clk 0:01:31]}  axb6 {[%clk 0:01:57]} 19. fxe5 {[%clk 0:01:18]}  Nd7 {[%clk 0:01:56]} 20. Nb5 {[%clk 0:01:17]}  Qb8 {[%clk 0:01:56]} 21. exd6 {[%clk 0:01:17]}  Ne5 {[%clk 0:01:36]} 22. Rc7 {[%clk 0:01:06]}  Rxa2 {[%clk 0:01:30]} 23. Bf1 {[%clk 0:00:55]}  Bd7 {[%clk 0:01:21]} 24. Nc3 {[%clk 0:00:42]}  Ra5 {[%clk 0:01:19]} 25. Qd4 {[%clk 0:00:40]}  f6 {[%clk 0:01:18]} 26. Nf3 {[%clk 0:00:24]}  Nhf7 {[%clk 0:01:17]} 27. Nxe5 {[%clk 0:00:22]}  Nxe5 {[%clk 0:01:18]} 28. Qxb6 {[%clk 0:00:15]}  Ra1 {[%clk 0:01:17]} 29. Qxb7 {[%clk 0:00:10]}  Qe8 {[%clk 0:01:17]} 30. Kg2 {[%clk 0:00:08]}  Kh8 {[%clk 0:00:53]} 31. Be2 {[%clk 0:00:09]}  Rf7 {[%clk 0:00:33]} 32. Qb6 {[%clk 0:00:07]}  Qf8 {[%clk 0:00:30]} 33. Rb7 {[%clk 0:00:07]}  Be8 {[%clk 0:00:27]} 34. Rb8 {[%clk 0:00:06]}  Nd7 {[%clk 0:00:25]} 35. Qd8 {[%clk 0:00:06]}  Nxb8 {[%clk 0:00:25]} 36. Qxb8 {[%clk 0:00:07]}  Bd7 {[%clk 0:00:20]} 37. Qxf8+ {[%clk 0:00:06]}  Rxf8 {[%clk 0:00:20]} 38. e5 {[%clk 0:00:07]}  Rd8 {[%clk 0:00:08]} 39. e6 {[%clk 0:00:07]}  Be8 {[%clk 0:00:08]} 40. d7 {[%clk 0:00:06]}  Bxd7 {[%clk 0:00:08]} 41. exd7 {[%clk 0:00:07]}  Rxd7 {[%clk 0:00:09]} 42. Bg4 {[%clk 0:00:08]}  Rd6 {[%clk 0:00:09]} 43. Re2 {[%clk 0:00:07]}  Kg8 {[%clk 0:00:09]} 44. Bf5 {[%clk 0:00:07]}  Kf8 {[%clk 0:00:08]} 45. Bg6 {[%clk 0:00:07]}  Rd8 {[%clk 0:00:08]} 46. Nb5 {[%clk 0:00:05]}  Ra6 {[%clk 0:00:00]} 47. Nc7 {[%clk 0:00:05]} 1-0

[Event "January 9 Late 2024"]
[Site "https://www.chess.com"]
[Date "2024.01.09"]
[Round "9"]
[White "Kollars, Dmitrij"]
[Black "Krzyzanowski, Marcin"]
[Result "0-1"]
[Board "20"]
[TimeControl "180+1"]
[WhiteFideId "12909572"]
[BlackFideId "1132199"]
[WhiteElo "2971"]
[BlackElo "2789"]
[WhiteTeam "GER"]
[BlackTeam "POL"]
[WhiteClock "0:00:00"]
[BlackClock "0:00:35"]

1. e4 {[%clk 0:03:00]}  e5 {[%clk 0:03:00]} 2. Nf3 {[%clk 0:03:01]}  Nc6 {[%clk 0:03:01]} 3. Bb5 {[%clk 0:03:01]}  a6 {[%clk 0:03:01]} 4. Ba4 {[%clk 0:03:01]}  d6 {[%clk 0:03:02]} 5. O-O {[%clk 0:03:01]}  Bd7 {[%clk 0:03:02]} 6. c4 {[%clk 0:03:01]}  g6 {[%clk 0:03:00]} 7. Bxc6 {[%clk 0:03:01]}  bxc6 {[%clk 0:03:00]} 8. d4 {[%clk 0:03:01]}  exd4 {[%clk 0:03:00]} 9. Qxd4 {[%clk 0:03:02]}  Qf6 {[%clk 0:02:59]} 10. e5 {[%clk 0:02:52]}  dxe5 {[%clk 0:02:59]} 11. Qxe5+ {[%clk 0:02:42]}  Qxe5 {[%clk 0:02:49]} 12. Nxe5 {[%clk 0:02:42]}  Be6 {[%clk 0:02:49]} 13. Re1 {[%clk 0:02:38]}  Bg7 {[%clk 0:02:49]} 14. Nxc6 {[%clk 0:02:33]}  Ne7 {[%clk 0:02:47]} 15. Nxe7 {[%clk 0:02:01]}  Kxe7 {[%clk 0:02:45]} 16. Bg5+ {[%clk 0:02:01]}  Kd7 {[%clk 0:02:41]} 17. Nc3 {[%clk 0:01:45]}  Bxc3 {[%clk 0:02:41]} 18. bxc3 {[%clk 0:01:46]}  Bxc4 {[%clk 0:02:34]} 19. Re7+ {[%clk 0:01:42]}  Kc6 {[%clk 0:02:32]} 20. Bf4 {[%clk 0:01:42]}  Rac8 {[%clk 0:02:31]} 21. Re4 {[%clk 0:01:20]}  Be6 {[%clk 0:02:24]} 22. Ra4 {[%clk 0:01:16]}  Ra8 {[%clk 0:02:24]} 23. h4 {[%clk 0:01:13]}  Rhb8 {[%clk 0:02:22]} 24. Be5 {[%clk 0:00:56]}  a5 {[%clk 0:02:16]} 25. f3 {[%clk 0:00:51]}  Rb2 {[%clk 0:02:14]} 26. a3 {[%clk 0:00:50]}  Rc2 {[%clk 0:02:08]} 27. Rb1 {[%clk 0:00:45]}  Ba2 {[%clk 0:01:54]} 28. Rd1 {[%clk 0:00:41]}  Bb3 {[%clk 0:01:48]} 29. Rf4 {[%clk 0:00:35]}  Re8 {[%clk 0:01:45]} 30. Rf6+ {[%clk 0:00:31]}  Be6 {[%clk 0:01:39]} 31. a4 {[%clk 0:00:21]}  Rb8 {[%clk 0:01:38]} 32. Rd4 {[%clk 0:00:09]}  Rbb2 {[%clk 0:01:31]} 33. Rg4 {[%clk 0:00:09]}  Kd7 {[%clk 0:01:27]} 34. Rg5 {[%clk 0:00:08]}  h6 {[%clk 0:01:17]} 35. Rg3 {[%clk 0:00:09]}  Rb1+ {[%clk 0:01:17]} 36. Kh2 {[%clk 0:00:07]}  Rcc1 {[%clk 0:01:18]} 37. Rg4 {[%clk 0:00:05]}  Bxg4 {[%clk 0:01:15]} 38. fxg4 {[%clk 0:00:06]}  Rh1+ {[%clk 0:01:08]} 39. Kg3 {[%clk 0:00:06]}  Rhe1 {[%clk 0:01:09]} 40. Bd4 {[%clk 0:00:06]}  Ke7 {[%clk 0:01:08]} 41. Ra6 {[%clk 0:00:06]}  Re2 {[%clk 0:01:00]} 42. Kf3 {[%clk 0:00:05]}  Rbb2 {[%clk 0:00:56]} 43. g3 {[%clk 0:00:06]}  Ra2 {[%clk 0:00:45]} 44. Rxa5 {[%clk 0:00:06]}  Ke6 {[%clk 0:00:41]} 45. Ra6+ {[%clk 0:00:05]}  Kd5 {[%clk 0:00:40]} 46. h5 {[%clk 0:00:06]}  c5 {[%clk 0:00:41]} 47. Be3 {[%clk 0:00:04]}  Rec2 {[%clk 0:00:39]} 48. hxg6 {[%clk 0:00:02]}  fxg6 {[%clk 0:00:40]} 49. Rxg6 {[%clk 0:00:02]}  Rxc3 {[%clk 0:00:41]} 50. Rxh6 {[%clk 0:00:01]}  Raa3 {[%clk 0:00:39]} 51. Rh5+ {[%clk 0:00:02]}  Ke6 {[%clk 0:00:37]} 52. Kf4 {[%clk 0:00:01]}  Rxe3 {[%clk 0:00:37]} 53. Rxc5 {[%clk 0:00:00]}  Rec3 {[%clk 0:00:35]} 0-1

[Event "January 9 Late 2024"]
[Site "https://www.chess.com"]
[Date "2024.01.09"]
[Round "9"]
[White "Adewumi, Tanitoluwa"]
[Black "Aravindh, Chithambaram VR."]
[Result "0-1"]
[Board "22"]
[TimeControl "180+1"]
[WhiteFideId "30966396"]
[BlackFideId "5072786"]
[WhiteElo "2724"]
[BlackElo "2937"]
[WhiteTeam "USA"]
[BlackTeam "IND"]
[WhiteClock "0:00:31"]
[BlackClock "0:01:58"]

1. e4 {[%clk 0:02:59]}  e5 {[%clk 0:02:59]} 2. Nf3 {[%clk 0:02:59]}  Nc6 {[%clk 0:03:00]} 3. Bc4 {[%clk 0:02:57]}  Bc5 {[%clk 0:02:59]} 4. O-O {[%clk 0:02:56]}  Nf6 {[%clk 0:02:58]} 5. d3 {[%clk 0:02:56]}  d6 {[%clk 0:02:58]} 6. Re1 {[%clk 0:02:54]}  O-O {[%clk 0:02:49]} 7. h3 {[%clk 0:02:53]}  a6 {[%clk 0:02:46]} 8. c3 {[%clk 0:02:53]}  Ba7 {[%clk 0:02:46]} 9. a4 {[%clk 0:02:52]}  Ne7 {[%clk 0:02:45]} 10. Nbd2 {[%clk 0:02:52]}  Ng6 {[%clk 0:02:45]} 11. Nf1 {[%clk 0:02:49]}  Be6 {[%clk 0:02:45]} 12. Bxe6 {[%clk 0:02:48]}  fxe6 {[%clk 0:02:46]} 13. Qb3 {[%clk 0:02:45]}  Qd7 {[%clk 0:02:44]} 14. Be3 {[%clk 0:02:43]}  Bxe3 {[%clk 0:02:42]} 15. Nxe3 {[%clk 0:02:42]}  Nh5 {[%clk 0:02:33]} 16. d4 {[%clk 0:02:19]}  Rxf3 {[%clk 0:02:27]} 17. gxf3 {[%clk 0:02:19]}  Rf8 {[%clk 0:02:24]} 18. Ng2 {[%clk 0:01:51]}  Qf7 {[%clk 0:02:00]} 19. Re3 {[%clk 0:01:44]}  Ngf4 {[%clk 0:01:59]} 20. Nxf4 {[%clk 0:01:34]}  Nxf4 {[%clk 0:02:00]} 21. Kf1 {[%clk 0:01:10]}  Qg6 {[%clk 0:02:00]} 22. Ke1 {[%clk 0:00:31]}  Qg1+ {[%clk 0:01:58]} 0-1

[Event "January 9 Late 2024"]
[Site "https://www.chess.com"]
[Date "2024.01.09"]
[Round "9"]
[White "Remizov, Yaroslav"]
[Black "Bellahcene, Bilel"]
[Result "1-0"]
[Board "23"]
[TimeControl "180+1"]
[WhiteFideId "34134015"]
[BlackFideId "696358"]
[WhiteElo "2854"]
[BlackElo "2623"]
[WhiteTeam "RUS"]
[BlackTeam "ALG"]
[WhiteClock "0:00:43"]
[BlackClock "0:00:35"]

1. e4 {[%clk 0:03:00]}  c5 {[%clk 0:02:58]} 2. Nf3 {[%clk 0:03:01]}  Nc6 {[%clk 0:02:58]} 3. Bb5 {[%clk 0:03:00]}  Nf6 {[%clk 0:02:52]} 4. Nc3 {[%clk 0:02:57]}  Nd4 {[%clk 0:02:50]} 5. Bc4 {[%clk 0:02:41]}  Nxf3+ {[%clk 0:02:40]} 6. Qxf3 {[%clk 0:02:41]}  d6 {[%clk 0:02:40]} 7. d3 {[%clk 0:02:18]}  e6 {[%clk 0:02:39]} 8. Bf4 {[%clk 0:02:14]}  Be7 {[%clk 0:02:32]} 9. e5 {[%clk 0:02:13]}  dxe5 {[%clk 0:02:30]} 10. Bxe5 {[%clk 0:02:14]}  O-O {[%clk 0:02:30]} 11. O-O {[%clk 0:02:04]}  a6 {[%clk 0:02:28]} 12. a4 {[%clk 0:02:03]}  Bd6 {[%clk 0:02:05]} 13. Rfe1 {[%clk 0:01:46]}  Bxe5 {[%clk 0:01:58]} 14. Rxe5 {[%clk 0:01:47]}  Nd7 {[%clk 0:01:54]} 15. Rh5 {[%clk 0:01:41]}  Qe7 {[%clk 0:01:51]} 16. Re1 {[%clk 0:01:39]}  Nf6 {[%clk 0:01:49]} 17. Rh4 {[%clk 0:01:32]}  Rb8 {[%clk 0:01:43]} 18. g4 {[%clk 0:00:59]}  h6 {[%clk 0:01:32]} 19. Qg3 {[%clk 0:00:56]}  Bd7 {[%clk 0:01:29]} 20. g5 {[%clk 0:00:56]}  hxg5 {[%clk 0:01:30]} 21. Qxg5 {[%clk 0:00:56]}  Rfe8 {[%clk 0:01:11]} 22. Re3 {[%clk 0:00:53]}  Kf8 {[%clk 0:01:03]} 23. Rg3 {[%clk 0:00:47]}  Qd6 {[%clk 0:00:35]} 24. Ne4 {[%clk 0:00:43]} 1-0

[Event "January 9 Late 2024"]
[Site "https://www.chess.com"]
[Date "2024.01.09"]
[Round "9"]
[White "Makarian, Rudik"]
[Black "Niedbala, Bartlomiej"]
[Result "0-1"]
[Board "24"]
[TimeControl "180+1"]
[WhiteFideId "44105681"]
[BlackFideId "21834008"]
[WhiteElo "3062"]
[BlackElo "2701"]
[WhiteTeam "FID"]
[BlackTeam "POL"]
[WhiteClock "0:00:00"]
[BlackClock "0:00:03"]

1. e4 {[%clk 0:03:00]}  Nf6 {[%clk 0:03:00]} 2. Nc3 {[%clk 0:03:00]}  d5 {[%clk 0:02:56]} 3. e5 {[%clk 0:02:58]}  d4 {[%clk 0:02:55]} 4. exf6 {[%clk 0:02:57]}  dxc3 {[%clk 0:02:56]} 5. bxc3 {[%clk 0:02:58]}  exf6 {[%clk 0:02:55]} 6. d4 {[%clk 0:02:59]}  Bd6 {[%clk 0:02:55]} 7. Bd3 {[%clk 0:02:59]}  O-O {[%clk 0:02:56]} 8. Ne2 {[%clk 0:03:00]}  c5 {[%clk 0:02:51]} 9. O-O {[%clk 0:02:59]}  Nc6 {[%clk 0:02:51]} 10. h3 {[%clk 0:02:57]}  Re8 {[%clk 0:02:46]} 11. Be3 {[%clk 0:02:56]}  cxd4 {[%clk 0:02:44]} 12. cxd4 {[%clk 0:02:57]}  b6 {[%clk 0:02:41]} 13. c3 {[%clk 0:02:56]}  Bb7 {[%clk 0:02:41]} 14. Qd2 {[%clk 0:02:53]}  Rc8 {[%clk 0:02:40]} 15. Rfe1 {[%clk 0:02:52]}  Na5 {[%clk 0:02:40]} 16. Bf4 {[%clk 0:02:44]}  Nc4 {[%clk 0:02:31]} 17. Bxc4 {[%clk 0:02:20]}  Rxc4 {[%clk 0:02:32]} 18. Bxd6 {[%clk 0:02:17]}  Qxd6 {[%clk 0:02:33]} 19. Ng3 {[%clk 0:02:17]}  Rcc8 {[%clk 0:02:27]} 20. Rxe8+ {[%clk 0:02:00]}  Rxe8 {[%clk 0:02:27]} 21. Re1 {[%clk 0:02:01]}  Rxe1+ {[%clk 0:02:06]} 22. Qxe1 {[%clk 0:02:02]}  g6 {[%clk 0:02:05]} 23. Qd2 {[%clk 0:01:47]}  Kg7 {[%clk 0:01:56]} 24. Nf1 {[%clk 0:01:47]}  f5 {[%clk 0:01:45]} 25. c4 {[%clk 0:01:44]}  f4 {[%clk 0:01:30]} 26. d5 {[%clk 0:01:41]}  Ba6 {[%clk 0:01:14]} 27. Nh2 {[%clk 0:01:28]}  b5 {[%clk 0:01:03]} 28. cxb5 {[%clk 0:01:11]}  Bb7 {[%clk 0:00:56]} 29. Ng4 {[%clk 0:01:05]}  h5 {[%clk 0:00:38]} 30. Qd4+ {[%clk 0:01:01]}  f6 {[%clk 0:00:38]} 31. Nh2 {[%clk 0:00:50]}  Qxd5 {[%clk 0:00:36]} 32. Qxd5 {[%clk 0:00:50]}  Bxd5 {[%clk 0:00:37]} 33. a4 {[%clk 0:00:50]}  Kf7 {[%clk 0:00:33]} 34. Nf3 {[%clk 0:00:45]}  Ke7 {[%clk 0:00:33]} 35. Nh4 {[%clk 0:00:34]}  Be4 {[%clk 0:00:31]} 36. f3 {[%clk 0:00:12]}  Bc2 {[%clk 0:00:28]} 37. a5 {[%clk 0:00:13]}  Kd7 {[%clk 0:00:18]} 38. b6 {[%clk 0:00:11]}  axb6 {[%clk 0:00:18]} 39. axb6 {[%clk 0:00:12]}  Kc6 {[%clk 0:00:18]} 40. g3 {[%clk 0:00:09]}  g5 {[%clk 0:00:14]} 41. Ng2 {[%clk 0:00:07]}  fxg3 {[%clk 0:00:14]} 42. h4 {[%clk 0:00:07]}  Kxb6 {[%clk 0:00:11]} 43. f4 {[%clk 0:00:04]}  gxh4 {[%clk 0:00:10]} 44. Ne3 {[%clk 0:00:01]}  Be4 {[%clk 0:00:06]} 45. Nf1 {[%clk 0:00:01]}  Kc5 {[%clk 0:00:05]} 46. Nd2 {[%clk 0:00:02]}  Bd5 {[%clk 0:00:06]} 47. Nf1 {[%clk 0:00:02]}  Kd4 {[%clk 0:00:06]} 48. Nd2 {[%clk 0:00:03]}  Ke3 {[%clk 0:00:06]} 49. Nf1+ {[%clk 0:00:04]}  Kd3 {[%clk 0:00:04]} 50. f5 {[%clk 0:00:05]}  Ke4 {[%clk 0:00:02]} 51. Kg2 {[%clk 0:00:04]}  Kxf5+ {[%clk 0:00:03]} 52. Kh3 {[%clk 0:00:05]}  Kg6 {[%clk 0:00:03]} 53. Ne3 {[%clk 0:00:04]}  Be6+ {[%clk 0:00:04]} 54. Kxh4 {[%clk 0:00:05]}  f5 {[%clk 0:00:05]} 55. Kxg3 {[%clk 0:00:06]}  Kg5 {[%clk 0:00:05]} 56. Kf2 {[%clk 0:00:03]}  f4 {[%clk 0:00:05]} 57. Nf1 {[%clk 0:00:03]}  Bd5 {[%clk 0:00:05]} 58. Nd2 {[%clk 0:00:04]}  h4 {[%clk 0:00:05]} 59. Nf1 {[%clk 0:00:04]}  Kg4 {[%clk 0:00:02]} 60. Nh2+ {[%clk 0:00:03]}  Kf5 {[%clk 0:00:02]} 61. Nf1 {[%clk 0:00:03]}  Kg4 {[%clk 0:00:03]} 62. Nh2+ {[%clk 0:00:04]}  Kh3 {[%clk 0:00:04]} 63. Nf1 {[%clk 0:00:05]}  Bb7 {[%clk 0:00:02]} 64. Nd2 {[%clk 0:00:05]}  Kg4 {[%clk 0:00:02]} 65. Nf1 {[%clk 0:00:05]}  Kf5 {[%clk 0:00:02]} 66. Nd2 {[%clk 0:00:04]}  Bc6 {[%clk 0:00:02]} 67. Nf1 {[%clk 0:00:04]}  h3 {[%clk 0:00:03]} 68. Kg1 {[%clk 0:00:03]}  Bg2 {[%clk 0:00:03]} 69. Nd2 {[%clk 0:00:02]}  Ke5 {[%clk 0:00:03]} 70. Kf2 {[%clk 0:00:02]}  Kd4 {[%clk 0:00:03]} 71. Nb3+ {[%clk 0:00:02]}  Ke4 {[%clk 0:00:03]} 72. Nc5+ {[%clk 0:00:03]}  Kf5 {[%clk 0:00:03]} 73. Nd3 {[%clk 0:00:04]}  Be4 {[%clk 0:00:02]} 74. Nc5 {[%clk 0:00:00]}  h2 {[%clk 0:00:03]} 0-1

[Event "January 9 Late 2024"]
[Site "https://www.chess.com"]
[Date "2024.01.10"]
[Round "9"]
[White "Svane, Rasmus"]
[Black "Stremavicius, Titas"]
[Result "1-0"]
[Board "25"]
[TimeControl "180+1"]
[WhiteFideId "4657101"]
[BlackFideId "12804444"]
[WhiteElo "2993"]
[BlackElo "2841"]
[WhiteTeam "GER"]
[BlackTeam "LTU"]
[WhiteClock "0:00:43"]
[BlackClock "0:00:49"]

1. Nf3 {[%clk 0:03:00]}  d5 {[%clk 0:02:59]} 2. g3 {[%clk 0:02:59]}  Nf6 {[%clk 0:02:59]} 3. Bg2 {[%clk 0:03:00]}  e6 {[%clk 0:02:59]} 4. O-O {[%clk 0:03:00]}  Be7 {[%clk 0:02:59]} 5. c4 {[%clk 0:02:59]}  O-O {[%clk 0:02:57]} 6. b3 {[%clk 0:02:58]}  d4 {[%clk 0:02:57]} 7. e3 {[%clk 0:02:58]}  c5 {[%clk 0:02:58]} 8. Ne5 {[%clk 0:02:58]}  Nfd7 {[%clk 0:02:46]} 9. exd4 {[%clk 0:02:57]}  cxd4 {[%clk 0:02:47]} 10. Nxd7 {[%clk 0:02:56]}  Qxd7 {[%clk 0:02:30]} 11. d3 {[%clk 0:02:50]}  Nc6 {[%clk 0:02:30]} 12. Ba3 {[%clk 0:02:50]}  Rd8 {[%clk 0:02:23]} 13. Bxe7 {[%clk 0:02:49]}  Qxe7 {[%clk 0:02:24]} 14. Nd2 {[%clk 0:02:48]}  Rb8 {[%clk 0:02:19]} 15. Qe2 {[%clk 0:02:44]}  Qc7 {[%clk 0:02:15]} 16. f4 {[%clk 0:02:41]}  b6 {[%clk 0:02:14]} 17. Rae1 {[%clk 0:02:38]}  Bb7 {[%clk 0:02:13]} 18. f5 {[%clk 0:02:32]}  exf5 {[%clk 0:02:06]} 19. Rxf5 {[%clk 0:02:29]}  g6 {[%clk 0:01:58]} 20. Rf4 {[%clk 0:02:24]}  Nb4 {[%clk 0:01:56]} 21. Bxb7 {[%clk 0:02:14]}  Qxb7 {[%clk 0:01:52]} 22. Ne4 {[%clk 0:02:00]}  Qc7 {[%clk 0:01:52]} 23. a3 {[%clk 0:00:59]}  Nc6 {[%clk 0:01:46]} 24. Nf6+ {[%clk 0:01:00]}  Kg7 {[%clk 0:01:46]} 25. Nd5 {[%clk 0:01:00]}  Qd6 {[%clk 0:01:46]} 26. b4 {[%clk 0:00:57]}  b5 {[%clk 0:01:01]} 27. Rf6 {[%clk 0:00:52]}  Qd7 {[%clk 0:01:01]} 28. Rxc6 {[%clk 0:00:44]}  Qxc6 {[%clk 0:01:01]} 29. Qe5+ {[%clk 0:00:45]}  Kg8 {[%clk 0:00:49]} 30. Ne7+ {[%clk 0:00:43]} 1-0

[Event "January 9 Late 2024"]
[Site "https://www.chess.com"]
[Date "2024.01.09"]
[Round "9"]
[White "Goltsev, Dmitry"]
[Black "Nguyen, Ngoc Truong Son"]
[Result "1/2-1/2"]
[Board "27"]
[TimeControl "180+1"]
[WhiteFideId "24176710"]
[BlackFideId "12401110"]
[WhiteElo "2759"]
[BlackElo "2944"]
[WhiteTeam "RUS"]
[BlackTeam "VIE"]
[WhiteClock "0:00:03"]
[BlackClock "0:00:05"]

1. e4 {[%clk 0:03:00]}  c5 {[%clk 0:01:31]} 2. Nf3 {[%clk 0:02:59]}  Nc6 {[%clk 0:01:31]} 3. d4 {[%clk 0:02:59]}  cxd4 {[%clk 0:01:32]} 4. Nxd4 {[%clk 0:03:00]}  e5 {[%clk 0:01:31]} 5. Nf5 {[%clk 0:02:59]}  d5 {[%clk 0:01:24]} 6. Qxd5 {[%clk 0:02:59]}  Qxd5 {[%clk 0:01:23]} 7. exd5 {[%clk 0:03:00]}  Bxf5 {[%clk 0:01:23]} 8. dxc6 {[%clk 0:03:01]}  bxc6 {[%clk 0:01:22]} 9. Bd3 {[%clk 0:03:01]}  Bxd3 {[%clk 0:01:21]} 10. cxd3 {[%clk 0:03:02]}  Nf6 {[%clk 0:01:07]} 11. Nc3 {[%clk 0:03:02]}  Bb4 {[%clk 0:01:06]} 12. Ke2 {[%clk 0:03:01]}  Bxc3 {[%clk 0:01:06]} 13. bxc3 {[%clk 0:03:01]}  Kd7 {[%clk 0:01:06]} 14. Rb1 {[%clk 0:03:00]}  Rhb8 {[%clk 0:01:06]} 15. Bd2 {[%clk 0:03:00]}  Nd5 {[%clk 0:01:03]} 16. c4 {[%clk 0:03:00]}  Nc7 {[%clk 0:01:03]} 17. Be3 {[%clk 0:02:55]}  Ne6 {[%clk 0:00:57]} 18. Kd2 {[%clk 0:02:49]}  a6 {[%clk 0:00:46]} 19. a4 {[%clk 0:02:41]}  c5 {[%clk 0:00:44]} 20. a5 {[%clk 0:02:40]}  Kc6 {[%clk 0:00:43]} 21. Kc3 {[%clk 0:02:38]}  h5 {[%clk 0:00:26]} 22. f3 {[%clk 0:02:33]}  h4 {[%clk 0:00:21]} 23. Rhe1 {[%clk 0:02:32]}  f6 {[%clk 0:00:20]} 24. h3 {[%clk 0:02:26]}  g5 {[%clk 0:00:20]} 25. Rf1 {[%clk 0:02:23]}  Ng7 {[%clk 0:00:17]} 26. Rfe1 {[%clk 0:02:21]}  Nf5 {[%clk 0:00:18]} 27. Bf2 {[%clk 0:02:21]}  Nd6 {[%clk 0:00:17]} 28. Be3 {[%clk 0:02:18]}  Ne8 {[%clk 0:00:13]} 29. Bf2 {[%clk 0:02:13]}  Ng7 {[%clk 0:00:13]} 30. Be3 {[%clk 0:02:10]}  Ne6 {[%clk 0:00:14]} 31. Red1 {[%clk 0:02:09]}  Nf8 {[%clk 0:00:14]} 32. Re1 {[%clk 0:02:09]}  Nd7 {[%clk 0:00:14]} 33. Bf2 {[%clk 0:02:09]}  Rxb1 {[%clk 0:00:14]} 34. Rxb1 {[%clk 0:02:08]}  Rb8 {[%clk 0:00:15]} 35. Rxb8 {[%clk 0:02:05]}  Nxb8 {[%clk 0:00:15]} 36. Kc2 {[%clk 0:02:05]}  Kd6 {[%clk 0:00:16]} 37. Kd1 {[%clk 0:02:05]}  Nc6 {[%clk 0:00:17]} 38. Be1 {[%clk 0:02:05]}  Nd4 {[%clk 0:00:16]} 39. Bc3 {[%clk 0:02:05]}  Ne6 {[%clk 0:00:16]} 40. Bd2 {[%clk 0:02:04]}  Nd4 {[%clk 0:00:12]} 41. Bc3 {[%clk 0:02:03]}  Nc6 {[%clk 0:00:12]} 42. Ke2 {[%clk 0:02:03]}  Ke6 {[%clk 0:00:12]} 43. Ke3 {[%clk 0:02:02]}  Kf5 {[%clk 0:00:12]} 44. Bd2 {[%clk 0:02:01]}  Kg6 {[%clk 0:00:12]} 45. Ke4 {[%clk 0:01:59]}  Ne7 {[%clk 0:00:11]} 46. Be3 {[%clk 0:01:57]}  Nc6 {[%clk 0:00:11]} 47. Bxc5 {[%clk 0:01:56]}  Nxa5 {[%clk 0:00:11]} 48. Kd5 {[%clk 0:01:52]}  Kf7 {[%clk 0:00:09]} 49. Bb6 {[%clk 0:01:51]}  Nb3 {[%clk 0:00:09]} 50. c5 {[%clk 0:01:50]}  Ke7 {[%clk 0:00:09]} 51. c6 {[%clk 0:01:49]}  a5 {[%clk 0:00:09]} 52. Kc4 {[%clk 0:01:44]}  a4 {[%clk 0:00:09]} 53. Kb4 {[%clk 0:01:43]}  Kd6 {[%clk 0:00:08]} 54. Bd8 {[%clk 0:00:36]}  f5 {[%clk 0:00:07]} 55. Bxg5 {[%clk 0:00:24]}  Kxc6 {[%clk 0:00:08]} 56. Bxh4 {[%clk 0:00:21]}  Nc5 {[%clk 0:00:08]} 57. Bg5 {[%clk 0:00:18]}  Kd5 {[%clk 0:00:08]} 58. h4 {[%clk 0:00:19]}  Nxd3+ {[%clk 0:00:07]} 59. Kxa4 {[%clk 0:00:19]}  Ke6 {[%clk 0:00:06]} 60. Kb5 {[%clk 0:00:19]}  f4 {[%clk 0:00:07]} 61. h5 {[%clk 0:00:16]}  Kf5 {[%clk 0:00:07]} 62. Bh4 {[%clk 0:00:12]}  e4 {[%clk 0:00:04]} 63. fxe4+ {[%clk 0:00:12]}  Kxe4 {[%clk 0:00:04]} 64. h6 {[%clk 0:00:13]}  Ne5 {[%clk 0:00:05]} 65. h7 {[%clk 0:00:12]}  Nf7 {[%clk 0:00:05]} 66. Bf6 {[%clk 0:00:10]}  Kf5 {[%clk 0:00:04]} 67. Bg7 {[%clk 0:00:07]}  Kg6 {[%clk 0:00:03]} 68. h8=Q {[%clk 0:00:07]}  Nxh8 {[%clk 0:00:03]} 69. Bxh8 {[%clk 0:00:08]}  Kf5 {[%clk 0:00:03]} 70. Bd4 {[%clk 0:00:08]}  Kg4 {[%clk 0:00:02]} 71. Bf2 {[%clk 0:00:09]}  f3 {[%clk 0:00:02]} 72. g3 {[%clk 0:00:09]}  Kh3 {[%clk 0:00:03]} 73. Kc4 {[%clk 0:00:06]}  Kg2 {[%clk 0:00:03]} 74. Be1 {[%clk 0:00:05]}  Kf1 {[%clk 0:00:04]} 75. Bc3 {[%clk 0:00:03]}  Kg2 {[%clk 0:00:04]} 76. Be1 {[%clk 0:00:04]}  Kf1 {[%clk 0:00:04]} 77. Bc3 {[%clk 0:00:04]}  Kg2 {[%clk 0:00:05]} 78. Be1 {[%clk 0:00:03]} 1/2-1/2